fUSD/lending_fUSD_20241207
["ID","MTS","AMOUNT","RATE_DAILY","PERIOD"]
[344549596,1733541095469,-829.41,0.00016438,2]
[344549597,1733541095479,-829.41,0.00016438,2]
[344549598,1733541095489,-829.41,0.00016438,2]
[344549599,1733541095500,-829.41,0.00016438,2]
[344549600,1733541095510,-829.41,0.00016438,2]
[344549601,1733541095520,-829.41,0.00016438,2]
[344549602,1733541095530,-829.41,0.00016438,2]
[344549603,1733541095540,-829.41,0.00016438,2]
[344549604,1733541095550,-829.41,0.00016438,2]
[344549605,1733541095568,-829.41,0.00016438,2]
[344549606,1733541095578,-829.41,0.00016438,2]
[344549607,1733541095592,-829.41,0.00016438,2]
[344549608,1733541095606,-584.9,0.00016438,2]
[344549609,1733541095616,-584.9,0.00016438,2]
[344549610,1733541095627,-300.0,0.00016438,2]
[344549611,1733541095637,-150.13,0.00016438,2]
[344549612,1733541095647,-500.0,0.00016438,2]
[344549613,1733541095657,-150.0,0.00016439,2]
[344549614,1733541095668,-1500.0,0.00016442,2]
[344549615,1733541095681,-150.0,0.00016443,2]
[344549616,1733541095691,-150.0,0.00016443,2]
[344549617,1733541095701,-200.0,0.0001645,2]
[344549618,1733541095711,-150.0,0.0001645,2]
[344549619,1733541095721,-19931.68798046,0.00016454,2]
[344549620,1733541095733,-150.0,0.00016455,2]
[344549621,1733541095744,-150.0,0.00016456,2]
[344549622,1733541095754,-150.0,0.00016457,2]
[344549623,1733541095764,-150.0,0.00016462,2]
[344549624,1733541095774,-150.0,0.00016464,2]
[344549625,1733541095785,-150.0,0.00016468,2]
[344549626,1733541095794,-150.0,0.0001647,2]
[344549627,1733541095807,-150.0,0.0001648,2]
[344549628,1733541095817,-150.0,0.00016485,2]
[344549629,1733541095827,-152.0,0.00016485,9]
[344549630,1733541095837,-150.0,0.00016489,2]
[344549631,1733541095847,-800.0,0.00016493,2]
[344549632,1733541095858,-150.0,0.00016497,2]
[344549633,1733541095869,-200.0,0.00016498,2]
[344549634,1733541095880,-200.0,0.00016498,2]
[344549635,1733541095890,-200.0,0.00016498,3]
[344549636,1733541095900,-200.0,0.00016498,3]
[344549637,1733541095911,-150.0,0.00016499,2]
[344549638,1733541095921,-150.0,0.00016506,2]
[344549639,1733541095931,-150.0,0.00016511,2]
[344549640,1733541095940,-150.0,0.00016513,2]
[344549641,1733541095951,-150.0,0.00016515,2]
[344549642,1733541095961,-150.0,0.0001652,2]
[344549643,1733541095971,-1500.0,0.00016523,2]
[344549644,1733541095980,-1500.0,0.00016523,2]
[344549645,1733541095990,-150.0,0.00016526,2]
[344549646,1733541096001,-150.0,0.00016527,2]
[344549647,1733541096011,-150.0,0.00016527,2]
[344549648,1733541096021,-150.0,0.00016528,2]
[344549649,1733541096031,-150.0,0.00016529,2]
[344549650,1733541096041,-150.0,0.00016533,2]
[344549651,1733541096051,-150.0,0.00016537,2]
[344549652,1733541096065,-2024.7325369,0.00016546,2]
[344549653,1733541096076,-2000.0,0.00016546,2]
[344549654,1733541096086,-2067.16406516,0.00016546,2]
[344549655,1733541096097,-1201.80548149,0.00016546,2]
[344549656,1733541096107,-893.61701031,0.00016546,2]
[344549657,1733541096117,-150.0,0.00016549,2]
[344549658,1733541096127,-150.0,0.00016549,2]
[344549659,1733541096136,-150.0,0.0001655,2]
[344549660,1733541096147,-150.0,0.00016552,2]
[344549661,1733541096157,-150.0,0.00016554,2]
[344549662,1733541096168,-150.0,0.00016554,2]
[344549663,1733541096177,-150.0,0.00016557,2]
[344549664,1733541096187,-2000.0,0.0001656,7]
[344549665,1733541096197,-150.0,0.00016565,2]
[344549666,1733541096206,-150.61,0.00016568,2]
[344549667,1733541096216,-150.0,0.00016583,2]
[344549668,1733541096225,-150.0,0.00016591,2]
[344549669,1733541096234,-150.0,0.00016595,2]
[344549670,1733541096244,-150.0,0.00016597,2]
[344549671,1733541096253,-1500.0,0.00016604,2]
[344549672,1733541096262,-150.0,0.00016606,2]
[344549673,1733541096272,-1500.0,0.00016607,2]
[344549674,1733541096282,-150.0,0.00016608,2]
[344549675,1733541096292,-150.0,0.00016609,2]
[344549676,1733541096302,-150.0,0.00016611,2]
[344549677,1733541096314,-150.0,0.00016611,2]
[344549678,1733541096324,-1500.0,0.00016612,2]
[344549679,1733541096334,-150.0,0.00016615,2]
[344549680,1733541096344,-150.0,0.00016622,2]
[344549681,1733541096355,-150.0,0.00016632,2]
[344549682,1733541096364,-1500.0,0.00016639,2]
[344549683,1733541096374,-150.0,0.00016639,2]
[344549684,1733541096384,-605.8826,0.00016643,2]
[344549685,1733541096394,-150.0,0.00016654,2]
[344549686,1733541096404,-150.0,0.00016657,2]
[344549687,1733541096414,-8320.9,0.00016658,30]
[344549688,1733541096424,-351.89,0.00016658,30]
[344549689,1733541096434,-800.0,0.00016658,2]
[344549690,1733541096444,-800.0,0.00016658,2]
[344549691,1733541096453,-800.0,0.00016658,2]
[344549692,1733541096464,-800.0,0.00016658,2]
[344549693,1733541096478,-800.0,0.00016658,2]
[344549694,1733541096489,-800.0,0.00016658,2]
[344549695,1733541096498,-800.0,0.00016658,2]
[344549696,1733541096508,-800.0,0.00016658,2]
[344549697,1733541096518,-800.0,0.00016658,2]
[344549698,1733541096528,-800.0,0.00016658,2]
[344549699,1733541096538,-800.0,0.00016658,2]
[344549700,1733541096548,-800.0,0.00016658,2]
[344549701,1733541096559,-500.0,0.00016659,14]
[344549702,1733541096569,-500.0,0.0001666,14]
[344549703,1733541096580,-500.0,0.0001666,14]
[344549704,1733541096590,-500.0,0.0001666,14]
[344549705,1733541096603,-500.0,0.0001666,14]
[344549706,1733541096613,-500.0,0.0001666,14]
[344549707,1733541096623,-500.0,0.0001666,14]
[344549708,1733541096633,-500.0,0.0001666,14]
[344549709,1733541096646,-500.0,0.0001666,14]
[344549710,1733541096655,-500.0,0.0001666,14]
[344549711,1733541096665,-603.69803844,0.0001666,2]
[344549712,1733541096681,-150.0,0.0001666,2]
[344549713,1733541096690,-150.0,0.0001666,2]
[344549714,1733541096700,-150.0,0.0001666,2]
[344549715,1733541096709,-386.27060606,0.0001666,2]
[344549716,1733541096719,-150.0,0.0001666,2]
[344549717,1733541096729,-281.8116264,0.0001666,2]
[344549718,1733541096739,-150.0,0.0001666,2]
[344549719,1733541096749,-150.0,0.0001666,2]
[344549720,1733541096759,-150.0,0.0001666,2]
[344549721,1733541096769,-150.0,0.0001666,2]
[344549722,1733541096780,-156.39676603,0.0001666,2]
[344549723,1733541096790,-150.0,0.0001666,2]
[344549724,1733541096800,-169.35785082,0.0001666,2]
[344549725,1733541096812,-150.0,0.0001666,2]
[344549726,1733541096822,-150.0,0.0001666,2]
[344549727,1733541096833,-1000.0,0.0001667,2]
[344549728,1733541096843,-1000.0,0.0001667,2]
[344549729,1733541096853,-500.0,0.0001667,2]
[344549730,1733541096864,-1000.0,0.0001667,2]
[344549731,1733541096874,-500.0,0.0001667,2]
[344549732,1733541096884,-1000.0,0.0001667,2]
[344549733,1733541096894,-500.0,0.0001667,2]
[344549734,1733541096904,-1000.0,0.0001667,2]
[344549735,1733541096913,-500.0,0.0001667,2]
[344549736,1733541096924,-1000.0,0.0001667,2]
[344549737,1733541096934,-500.0,0.0001667,2]
[344549738,1733541096943,-1000.0,0.0001667,2]
[344549739,1733541096953,-500.0,0.0001667,2]
[344549740,1733541096963,-778.261639,0.0001667,2]
[344549741,1733541096973,-1000.0,0.0001667,2]
[344549742,1733541096983,-1569.16856473,0.0001667,2]
[344549743,1733541096992,-1000.0,0.0001667,2]
[344549744,1733541097002,-500.0,0.0001667,2]
[344549745,1733541097012,-2258.0,0.00016682,2]
[344549746,1733541097022,-2968.76,0.000167,2]
[344549747,1733541097032,-230.0,0.000167,2]
[344549748,1733541097043,-1957.7771,0.000167,2]
[344549749,1733541097054,-364.0,0.000167,2]
[344549750,1733541097066,-2739.489,0.000167,2]
[344549751,1733541097077,-562.43,0.00016703,2]
[344549752,1733541097087,-350.6246536,0.00016703,2]
[344549753,1733541097097,-401.51,0.00016703,2]
[344549754,1733541097107,-156.21474,0.00016703,2]
[344549755,1733541097117,-569.03,0.00016703,2]
[344549756,1733541097126,-712.37,0.00016703,2]
[344549757,1733541097136,-755.27,0.00016703,2]
[344549758,1733541097146,-1134.32,0.00016703,2]
[344549759,1733541097156,-500.0,0.00016703,2]
[344549760,1733541097166,-729.35,0.00016703,2]
[344549761,1733541097176,-655.62,0.00016703,2]
[344549762,1733541097186,-500.0,0.00016703,2]
[344549763,1733541097196,-559.97,0.00016703,2]
[344549764,1733541097205,-629.17,0.00016703,2]
[344549765,1733541097215,-522.4,0.00016703,2]
[344549766,1733541097225,-829.41,0.00016703,2]
[344549767,1733541097235,-558.13,0.00016703,2]
[344549768,1733541097245,-596.81,0.00016703,2]
[344549769,1733541097254,-1715.02,0.00016703,2]
[344549770,1733541097264,-743.73,0.00016703,2]
[344549771,1733541097274,-607.63,0.00016703,2]
[344549772,1733541097284,-3248.7,0.00016703,2]
[344549773,1733541097294,-857.46,0.00016703,2]
[344549774,1733541097305,-3403.71,0.00016703,2]
[344549775,1733541097316,-546.54,0.00016703,2]
[344549776,1733541097326,-500.0,0.00016703,2]
[344549777,1733541097336,-766.2797731,0.00016703,2]
[344549778,1733541097346,-545.2,0.00016703,2]
[344549779,1733541097355,-922.6,0.00016703,2]
[344549780,1733541097366,-506.19,0.00016703,2]
[344549781,1733541097376,-1285.83,0.00016703,2]
[344549782,1733541097386,-553.43,0.00016703,2]
[344549783,1733541097395,-516.49601088,0.00016703,2]
[344549784,1733541097406,-1097.94,0.00016703,2]
[344549785,1733541097416,-753.13,0.00016703,2]
[344549786,1733541097426,-893.85,0.00016703,2]
[344549787,1733541097436,-610.6,0.00016703,2]
[344549788,1733541097445,-323.47968859,0.00016703,2]
[344549789,1733541097455,-159.41424905,0.00016703,2]
[344549790,1733541097465,-2397.76,0.00016703,2]
[344549791,1733541097476,-532.20867221,0.00016703,2]
[344549792,1733541097486,-588.0310795,0.00016703,2]
[344549793,1733541097496,-301.0770387,0.00016703,2]
[344549794,1733541097506,-1962.86,0.00016703,2]
[344549795,1733541097516,-3708.05,0.00016703,2]
[344549796,1733541097526,-500.0,0.00016703,2]
[344549797,1733541097536,-500.0,0.00016703,2]
[344549798,1733541097546,-1882.97,0.00016703,2]
[344549799,1733541097558,-555.52,0.00016703,2]
[344549800,1733541097568,-500.0,0.00016703,2]
[344549801,1733541097578,-500.0,0.00016703,2]
[344549802,1733541097589,-841.17,0.00016703,2]
[344549803,1733541097604,-584.44,0.00016703,2]
[344549804,1733541097613,-656.6,0.00016703,2]
[344549805,1733541097623,-868.73,0.00016703,2]
[344549806,1733541097634,-730.65,0.00016703,2]
[344549807,1733541097643,-691.9,0.00016703,2]
[344549808,1733541097653,-500.0,0.00016703,2]
[344549809,1733541097662,-3564.03,0.00016703,2]
[344549810,1733541097672,-1736.61,0.00016703,2]
[344549811,1733541097681,-2313.64,0.00016703,10]
[344549812,1733541097691,-2880.03,0.00016703,2]
[344549813,1733541097700,-574.1,0.00016703,2]
[344549814,1733541097709,-605.61,0.00016703,2]
[344549815,1733541097718,-1145.2,0.00016703,2]
[344549816,1733541097790,-358.07,0.00016703,2]
[344549817,1733541097800,-500.0,0.00016703,2]
[344549818,1733541097813,-977.63,0.00016703,2]
[344549819,1733541097822,-857.76,0.00016703,2]
[344549820,1733541097832,-866.03,0.00016703,2]
[344549821,1733541097841,-4199.14,0.00016703,2]
[344549822,1733541097851,-843.87,0.00016703,2]
[344549823,1733541097861,-2318.54,0.00016703,2]
[344549824,1733541097871,-500.0,0.00016703,2]
[344549825,1733541097881,-513.08,0.00016704,2]
[344549826,1733541097890,-207.69879278,0.00016704,2]
[344549827,1733541097900,-1822.29,0.00016704,2]
[344549828,1733541097909,-633.72555363,0.00016704,2]
[344549829,1733541097919,-4455.3,0.00016704,2]
[344549830,1733541097930,-561.77,0.00016704,2]
[344549831,1733541097938,-963.02,0.00016704,2]
[344549832,1733541097947,-8683.14,0.00016704,7]
[344549833,1733541097956,-2668.21,0.00016704,2]
[344549834,1733541097966,-1941.45,0.00016704,2]
[344549835,1733541097975,-627.31,0.00016705,2]
[344549836,1733541097984,-342.60230586,0.00016705,2]
[344549837,1733541097993,-533.44,0.00016705,2]
[344549838,1733541098003,-546.95,0.00016705,2]
[344549839,1733541098012,-164.182202,0.00016706,2]
[344549840,1733541098021,-451.856535,0.00016706,2]
[344549841,1733541098031,-451.856535,0.00016706,2]
[344549842,1733541098040,-240.176242,0.00016706,2]
[344549843,1733541098050,-240.176242,0.00016706,2]
[344549844,1733541098060,-729.45527978,0.00016707,2]
[344549845,1733541098070,-959.0,0.00016712,2]
[344549846,1733541098079,-219.2,0.00016712,2]
[344549847,1733541098089,-152.0,0.00016718,10]
[344549848,1733541098099,-603.69803844,0.00016763,2]
[344549849,1733541098108,-386.27060606,0.00016763,2]
[344549850,1733541098117,-200.0,0.00016798,3]
[344549851,1733541098126,-200.0,0.00016798,3]
[344549852,1733541098137,-200.0,0.00016798,2]
[344549853,1733541098146,-200.0,0.00016798,2]
[344549854,1733541098155,-150.0,0.0001681,2]
[344549855,1733541098165,-150.0,0.00016863,2]
[344549856,1733541098174,-603.69803844,0.00016865,2]
[344549857,1733541098184,-386.27060606,0.00016865,2]
[344549858,1733541098194,-150.0,0.00016943,2]
[344549859,1733541098205,-2348.0,0.00016947,8]
[344549860,1733541098215,-152.0,0.00016951,11]
[344549861,1733541098223,-150.0,0.00016959,2]
[344549862,1733541098233,-603.69803844,0.00016968,2]
[344549863,1733541098244,-386.27060606,0.00016968,2]
[344549864,1733541098253,-562.43,0.00016977,2]
[344549865,1733541098263,-401.51,0.00016977,2]
[344549866,1733541098272,-569.03,0.00016977,2]
[344549867,1733541098282,-712.37,0.00016977,2]
[344549868,1733541098291,-755.27,0.00016977,2]
[344549869,1733541098301,-1134.32,0.00016977,2]
[344549870,1733541098312,-151.42417542,0.00016977,2]
[344549871,1733541098322,-729.35,0.00016977,2]
[344549872,1733541098331,-655.62,0.00016977,2]
[344549873,1733541098340,-284.45045507,0.00016977,2]
[344549874,1733541098350,-559.97,0.00016977,2]
[344549875,1733541098360,-629.17,0.00016977,2]
[344549876,1733541098370,-522.4,0.00016977,2]
[344549877,1733541098379,-829.41,0.00016977,2]
[344549878,1733541098388,-558.13,0.00016977,2]
[344549879,1733541098397,-596.81,0.00016977,2]
[344549880,1733541098407,-1715.02,0.00016977,2]
[344549881,1733541098416,-743.73,0.00016977,2]
[344549882,1733541098426,-607.63,0.00016977,2]
[344549883,1733541098435,-3248.7,0.00016977,2]
[344549884,1733541098445,-857.46,0.00016977,2]
[344549885,1733541098457,-3403.71,0.00016977,2]
[344549886,1733541098467,-546.54,0.00016977,2]
[344549887,1733541098478,-500.0,0.00016977,2]
[344549888,1733541098488,-545.2,0.00016977,2]
[344549889,1733541098497,-922.6,0.00016977,2]
[344549890,1733541098507,-506.19,0.00016977,2]
[344549891,1733541098516,-1285.83,0.00016977,2]
[344549892,1733541098526,-553.43,0.00016977,2]
[344549893,1733541098536,-1097.94,0.00016977,2]
[344549894,1733541098546,-753.13,0.00016977,2]
[344549895,1733541098555,-893.85,0.00016977,2]
[344549896,1733541098567,-610.6,0.00016977,2]
[344549897,1733541098578,-2397.76,0.00016977,2]
[344549898,1733541098588,-1962.86,0.00016977,2]
[344549899,1733541098599,-3708.05,0.00016977,2]
[344549900,1733541098608,-619.87383529,0.00016977,2]
[344549901,1733541098617,-500.0,0.00016977,2]
[344549902,1733541098626,-1882.97,0.00016977,2]
[344549903,1733541098637,-555.52,0.00016977,2]
[344549904,1733541098647,-153.57620993,0.00016977,2]
[344549905,1733541098656,-500.0,0.00016977,2]
[344549906,1733541098666,-841.17,0.00016977,2]
[344549907,1733541098679,-584.44,0.00016977,2]
[344549908,1733541098689,-656.6,0.00016977,2]
[344549909,1733541098698,-730.65,0.00016977,2]
[344549910,1733541098708,-691.9,0.00016977,2]
[344549911,1733541098718,-234.25876276,0.00016977,2]
[344549912,1733541098727,-3564.03,0.00016977,2]
[344549913,1733541098737,-1736.61,0.00016977,2]
[344549914,1733541098746,-2313.64,0.00016977,10]
[344549915,1733541098755,-2880.03,0.00016977,2]
[344549916,1733541098765,-574.1,0.00016977,2]
[344549917,1733541098774,-605.61,0.00016977,2]
[344549918,1733541098783,-1145.2,0.00016977,2]
[344549919,1733541098793,-500.0,0.00016977,2]
[344549920,1733541098802,-977.63,0.00016977,2]
[344549921,1733541098817,-857.76,0.00016977,2]
[344549922,1733541098828,-866.03,0.00016977,2]
[344549923,1733541098838,-4199.14,0.00016977,2]
[344549924,1733541098847,-843.87,0.00016977,2]
[344549925,1733541098857,-2318.54,0.00016977,2]
[344549926,1733541098866,-451.04921352,0.00016977,2]
[344549927,1733541098875,-151.0,0.00016978,2]
[344549928,1733541098885,-332.205209,0.00016978,2]
[344549929,1733541098895,-342.797208,0.00016978,2]
[344549930,1733541098904,-342.797208,0.00016978,2]
[344549931,1733541098913,-332.205209,0.00016978,2]
[344549932,1733541098923,-513.28086866,0.00016978,2]
[344549933,1733541098934,-439.361201,0.00016978,2]
[344549934,1733541098944,-439.361201,0.00016978,2]
[344549935,1733541098953,-151.0,0.00016978,2]
[344549936,1733541098962,-1822.35433067,0.00016978,2]
[344549937,1733541098971,-4455.49065598,0.00016978,2]
[344549938,1733541098981,-561.77,0.00016978,2]
[344549939,1733541098990,-963.02,0.00016978,2]
[344549940,1733541098999,-8683.14,0.00016978,7]
[344549941,1733541099009,-2668.42350479,0.00016978,2]
[344549942,1733541099018,-1941.61637975,0.00016978,2]
[344549943,1733541099028,-627.40103878,0.00016979,2]
[344549944,1733541099038,-533.60243203,0.00016979,2]
[344549945,1733541099047,-547.18360516,0.00016979,2]
[344549946,1733541099057,-959.0,0.00016986,2]
[344549947,1733541099067,-10000.0,0.00017,5]
[344549948,1733541099076,-500.0,0.00017,2]
[344549949,1733541099087,-500.0,0.00017,2]
[344549950,1733541099096,-584.9,0.00017019,2]
[344549951,1733541099104,-151.0,0.00017019,2]
[344549952,1733541099114,-584.9,0.00017019,2]
[344549953,1733541099123,-373.60261,0.00017019,2]
[344549954,1733541099133,-373.60261,0.00017019,2]
[344549955,1733541099143,-151.0,0.00017019,2]
[344549956,1733541099152,-151.0,0.00017019,2]
[344549957,1733541099164,-1685.339669,0.00017019,2]
[344549958,1733541099174,-1685.339669,0.00017019,2]
[344549959,1733541099184,-520.28253,0.00017019,2]
[344549960,1733541099194,-520.28253,0.00017019,2]
[344549961,1733541099203,-1163.676613,0.0001702,2]
[344549962,1733541099212,-1163.676613,0.0001702,2]
[344549963,1733541099221,-151.0,0.0001702,2]
[344549964,1733541099231,-1113.119083,0.0001702,2]
[344549965,1733541099241,-151.0,0.0001702,2]
[344549966,1733541099251,-1113.119083,0.0001702,2]
[344549967,1733541099260,-150.0,0.00017037,2]
[344549968,1733541099270,-150.0,0.00017067,2]
[344549969,1733541099281,-603.69803844,0.00017071,2]
[344549970,1733541099291,-386.27060606,0.00017071,2]
[344549971,1733541099301,-150.0,0.00017109,2]
[344549972,1733541099312,-3073.21,0.0001714,2]
[344549973,1733541099321,-151.0,0.00017152,2]
[344549974,1733541099330,-151.0,0.00017152,2]
[344549975,1733541099339,-332.327159,0.00017152,2]
[344549976,1733541099349,-332.327159,0.00017152,2]
[344549977,1733541099359,-603.69803844,0.00017173,2]
[344549978,1733541099369,-386.27060606,0.00017173,2]
[344549979,1733541099379,-152.0,0.00017184,12]
[344549980,1733541099388,-1056.0,0.0001719,2]
[344549981,1733541099397,-200.0,0.00017198,2]
[344549982,1733541099407,-200.0,0.00017198,2]
[344549983,1733541099416,-200.0,0.00017198,3]
[344549984,1733541099426,-200.0,0.00017198,3]
[344549985,1733541099435,-562.53253834,0.00017251,2]
[344549986,1733541099444,-401.74447132,0.00017251,2]
[344549987,1733541099454,-156.21474,0.00017251,2]
[344549988,1733541099464,-569.26504118,0.00017251,2]
[344549989,1733541099474,-712.53980534,0.00017251,2]
[344549990,1733541099484,-755.30047661,0.00017251,2]
[344549991,1733541099493,-1134.42509942,0.00017251,2]
[344549992,1733541099503,-729.49778581,0.00017251,2]
[344549993,1733541099512,-655.76841787,0.00017251,2]
[344549994,1733541099522,-559.98521925,0.00017251,2]
[344549995,1733541099532,-629.38687622,0.00017251,2]
[344549996,1733541099542,-522.49338941,0.00017251,2]
[344549997,1733541099551,-829.54315079,0.00017251,2]
[344549998,1733541099562,-558.16500895,0.00017251,2]
[344549999,1733541099572,-596.91190096,0.00017251,2]
[344550000,1733541099581,-1715.10519938,0.00017251,2]
[344550001,1733541099591,-743.94265828,0.00017251,2]
[344550002,1733541099603,-607.75087337,0.00017251,2]
[344550003,1733541099612,-3248.88953286,0.00017251,2]
[344550004,1733541099622,-857.61174939,0.00017251,2]
[344550005,1733541099631,-3403.71566457,0.00017251,2]
[344550006,1733541099642,-546.64667891,0.00017251,2]
[344550007,1733541099651,-356.25868265,0.00017251,2]
[344550008,1733541099660,-545.37552888,0.00017251,2]
[344550009,1733541099671,-922.62830077,0.00017251,2]
[344550010,1733541099681,-506.26082024,0.00017251,2]
[344550011,1733541099690,-1285.9,0.00017251,2]
[344550012,1733541099699,-553.56691463,0.00017251,2]
[344550013,1733541099708,-1098.00076439,0.00017251,2]
[344550014,1733541099719,-753.23710979,0.00017251,2]
[344550015,1733541099728,-893.90994827,0.00017251,2]
[344550016,1733541099738,-610.70008044,0.00017251,2]
[344550017,1733541099748,-2397.96249741,0.00017251,2]
[344550018,1733541099757,-1962.88901972,0.00017251,2]
[344550019,1733541099767,-3708.23602317,0.00017251,2]
[344550020,1733541099776,-275.29598695,0.00017251,2]
[344550021,1733541099786,-1883.07762229,0.00017251,2]
[344550022,1733541099795,-555.59455615,0.00017251,2]
[344550023,1733541099805,-158.143529,0.00017251,2]
[344550024,1733541099816,-461.635771,0.00017251,2]
[344550025,1733541099826,-454.039255,0.00017251,2]
[344550026,1733541099836,-158.143529,0.00017251,2]
[344550027,1733541099845,-394.07310744,0.00017251,2]
[344550028,1733541099854,-454.039255,0.00017251,2]
[344550029,1733541099863,-841.32611614,0.00017251,2]
[344550030,1733541099873,-461.635771,0.00017251,2]
[344550031,1733541099882,-584.56507358,0.00017251,2]
[344550032,1733541099892,-656.68301515,0.00017251,2]
[344550033,1733541099901,-730.8748285,0.00017251,2]
[344550034,1733541099910,-692.02331881,0.00017251,2]
[344550035,1733541099919,-3564.20684146,0.00017251,2]
[344550036,1733541099928,-1736.62386883,0.00017251,2]
[344550037,1733541099937,-2313.65383212,0.00017251,10]
[344550038,1733541099947,-2880.03935304,0.00017251,2]
[344550039,1733541099956,-574.31381711,0.00017251,2]
[344550040,1733541099965,-605.76437128,0.00017251,2]
[344550041,1733541099975,-1145.30098861,0.00017251,2]
[344550042,1733541099984,-3507.381307,0.00017251,2]
[344550043,1733541099993,-3507.381307,0.00017251,2]
[344550044,1733541100003,-482.73593918,0.00017251,2]
[344550045,1733541100012,-977.73116651,0.00017251,2]
[344550046,1733541100021,-857.832624,0.00017251,2]
[344550047,1733541100031,-866.08687641,0.00017251,2]
[344550048,1733541100040,-4199.33757407,0.00017251,2]
[344550049,1733541100050,-844.01295008,0.00017251,2]
[344550050,1733541100060,-2318.69888104,0.00017251,2]
[344550051,1733541100069,-151.0,0.00017252,2]
[344550052,1733541100079,-10000.0,0.00017252,2]
[344550053,1733541100088,-10000.0,0.00017252,2]
[344550054,1733541100098,-10000.0,0.00017252,2]
[344550055,1733541100108,-10000.0,0.00017252,2]
[344550056,1733541100117,-561.92534648,0.00017252,2]
[344550057,1733541100126,-530.080062,0.00017252,2]
[344550058,1733541100136,-963.02,0.00017252,2]
[344550059,1733541100145,-530.080062,0.00017252,2]
[344550060,1733541100154,-8683.27348636,0.00017252,7]
[344550061,1733541100163,-151.0,0.00017252,2]
[344550062,1733541100172,-150.0,0.00017258,2]
[344550063,1733541100181,-959.0,0.0001726,2]
[344550064,1733541100191,-150.0,0.0001727,2]
[344550065,1733541100200,-603.69803844,0.00017276,2]
[344550066,1733541100209,-386.27060606,0.00017276,2]
[344550067,1733541100219,-150.0,0.00017304,2]
[344550068,1733541100228,-251.132521,0.00017314,2]
[344550069,1733541100238,-251.132521,0.00017314,2]
[344550070,1733541100247,-1295.100569,0.00017314,2]
[344550071,1733541100256,-1295.100569,0.00017314,2]
[344550072,1733541100265,-420.421252,0.00017314,2]
[344550073,1733541100275,-420.421252,0.00017314,2]
[344550074,1733541100284,-514.0,0.00017314,2]
[344550075,1733541100293,-9019.0,0.00017328,2]
[344550076,1733541100302,-204555.0,0.00017328,2]
[344550077,1733541100314,-27708.0,0.00017328,2]
[344550078,1733541100323,-160.529952,0.00017328,2]
[344550079,1733541100331,-160.529952,0.00017328,2]
[344550080,1733541100340,-549.945068,0.00017328,2]
[344550081,1733541100350,-151.0,0.00017328,2]
[344550082,1733541100360,-180.38601,0.00017328,2]
[344550083,1733541100369,-180.38601,0.00017328,2]
[344550084,1733541100379,-758.8541,0.00017328,2]
[344550085,1733541100389,-758.8541,0.00017328,2]
[344550086,1733541100399,-154.355159,0.00017328,2]
[344550087,1733541100409,-495.707478,0.00017328,2]
[344550088,1733541100418,-495.707478,0.00017328,2]
[344550089,1733541100428,-416.180459,0.00017328,2]
[344550090,1733541100438,-416.180459,0.00017328,2]
[344550091,1733541100448,-2256.053409,0.00017328,2]
[344550092,1733541100458,-2256.053409,0.00017328,2]
[344550093,1733541100467,-151.0,0.00017328,2]
[344550094,1733541100476,-753.454212,0.00017328,2]
[344550095,1733541100486,-753.454212,0.00017328,2]